bitfinex-derivatives/quotes_ETHF0:USTF0_20251107
["timestamp","ask_amount","ask_price","bid_price","bid_amount"]
[1762489659791,0.3797,3338.5,3338.4,3.69337]
[1762489660188,0.38418867,3338.5,3338.4,3.69337]
[1762489660691,0.86974867,3338.5,3338.4,3.69578998]
[1762489660890,0.38418867,3338.5,3338.4,3.69578998]
[1762489662094,0.86974867,3338.5,3338.4,3.69578998]
[1762489662287,0.86974867,3338.5,3338.4,0.00241998]
[1762489663892,0.86526,3338.5,3338.4,0.00241998]
[1762489664784,0.86974867,3338.5,3338.4,0.00241998]
[1762489667184,4.07754867,3338.5,3338.4,0.00241998]
[1762489669592,4.07754867,3338.5,3338.4,1.998e-05]
[1762489669799,0.7248,3338.2,3338.1,0.00448867]
[1762489670297,0.72928867,3338.2,3338.1,0.00448867]
[1762489670797,0.24368867,3338.2,3338.1,0.4927372]
[1762489671001,0.72928867,3338.2,3338.1,0.4927372]
[1762489671496,0.72928867,3338.2,3338.1,0.0071172]
[1762489672284,0.00448867,3338.2,3338.1,0.4927372]
[1762489672894,0.72928867,3338.2,3338.1,0.0071172]
[1762489676995,0.2392,3338.2,3338.1,0.4927372]
[1762489677197,3.3483,3338.5,3338.2,0.48559]
[1762489677498,0.00448867,3338.4,3338.2,0.48559]
[1762489678198,0.48559,3338.3,3338.2,0.48559]
[1762489678700,0.4856,3338.2,3338.1,0.7295272]
[1762489678995,0.72479,3338.3,3338.2,0.48559]
[1762489679199,0.72479,3338.3,3338.2,0.72239]
[1762489680496,0.49005867,3338.4,3338.3,0.48559]
[1762489680799,0.00448867,3338.8,3338.7,0.72233]
[1762489681505,0.48999867,3338.8,3338.7,0.72233]
[1762489681709,0.00448867,3338.8,3338.7,0.72233]
[1762489683003,0.00448867,3338.8,3338.7,8.72233]
[1762489685901,3.2078,3339.4,3339.3,0.72224]
[1762489686207,4.0484,3340.0,3339.6,0.4854]
[1762489686409,0.48537,3339.8,3339.7,0.2369]
[1762489686804,0.1504,3340.0,3339.7,0.72228]
[1762489687009,0.63574,3340.0,3339.9,0.2369]
[1762489687507,0.15488867,3340.0,3339.9,0.72225]
[1762489688706,0.00448867,3340.0,3339.9,0.72225]
[1762489689415,0.00448867,3340.1,3340.0,0.2369]
[1762489692114,0.00448867,3340.1,3340.0,0.72224]
[1762489692718,0.00280462,3340.5,3340.4,0.72218]
[1762489693016,0.00729329,3340.5,3340.4,0.72218]
[1762489693209,0.00280462,3340.5,3340.4,0.72218]
[1762489694019,0.7277,3340.3,3340.2,3.2078]
[1762489694317,0.7277,3340.3,3340.2,3.69311]
[1762489694610,0.72771,3340.2,3340.1,0.00448867]
[1762489694918,0.73219867,3340.2,3340.1,0.00448867]
[1762489696413,3.93999867,3340.2,3340.1,0.00448867]
[1762489701618,0.73219867,3340.2,3340.1,0.00448867]
[1762489704115,3.93999867,3340.2,3340.1,0.00448867]
[1762489704818,0.87761,3339.5,3339.4,3.2078]
[1762489705312,0.88209867,3339.5,3339.4,3.2078]
[1762489705513,0.87761,3339.5,3339.4,3.2078]
[1762489705820,0.3922,3339.5,3339.4,3.69323]
[1762489706021,0.3922,3339.5,3339.4,3.93463]
[1762489706619,0.48544,3339.3,3339.2,0.2414]
[1762489706819,0.48543,3339.4,3339.2,0.2414]
[1762489707323,0.48545,3339.3,3339.2,0.2414]
[1762489707820,0.63523,3339.5,3339.3,0.48543]
[1762489709521,0.2424,3339.2,3339.1,0.00448867]
[1762489710121,0.48544,3339.3,3339.2,0.48544]
[1762489710319,0.48544,3339.3,3339.2,0.72684]
[1762489711524,0.72784,3339.3,3339.2,0.48544]
[1762489712324,0.48544,3339.3,3339.2,0.72684]
[1762489712514,0.72784,3339.3,3339.2,0.48544]
[1762489714525,0.48991867,3339.4,3339.3,0.48544]
[1762489714825,0.48543,3339.4,3339.3,0.48544]
[1762489715018,0.73231867,3339.4,3339.3,0.48544]
[1762489715425,0.48538,3339.7,3339.6,0.72639]
[1762489715620,0.48538,3339.7,3339.6,0.241]
[1762489715922,0.48541,3339.6,3339.5,0.48541]
[1762489716127,0.72929867,3339.6,3339.5,0.48541]
[1762489716826,0.87501,3339.5,3339.4,3.2078]
[1762489717019,0.87949867,3339.5,3339.4,3.2078]
[1762489718029,0.72493,3338.7,3338.6,3.2078]
[1762489718228,0.2394,3338.7,3338.6,3.2078]
[1762489718428,0.2394,3338.7,3338.6,3.69334]
[1762489719016,0.15468867,3339.0,3338.8,0.4855]
[1762489719224,0.15468867,3339.0,3338.9,0.4855]
[1762489719426,0.15468867,3339.0,3338.9,0.7265]
[1762489722628,0.64016867,3339.0,3338.9,0.7265]
[1762489722929,0.87806867,3339.0,3338.9,0.7265]
[1762489723128,0.87806867,3339.0,3338.9,0.4855]
[1762489723328,0.48551,3338.9,3338.8,0.48551]
[1762489723526,0.72342,3338.8,3338.7,0.48553]
[1762489724531,0.39258867,3339.0,3338.9,0.4855]
[1762489725635,0.87806867,3339.0,3338.9,0.4855]
[1762489726234,0.2379,3338.9,3338.6,3.2078]
[1762489726540,0.48553,3338.8,3338.7,0.72651]
[1762489726934,0.48553,3338.8,3338.7,0.241]
[1762489728632,0.48553,3338.8,3338.7,0.72653]
[1762489729138,0.48553,3338.8,3338.7,0.241]
[1762489729327,0.48553,3338.8,3338.7,0.48553]
[1762489729527,0.72343,3338.8,3338.7,0.48553]
[1762489729932,0.72343,3338.8,3338.7,0.72653]
[1762489731836,0.2379,3338.8,3338.7,0.72653]
[1762489732136,0.00448867,3339.0,3338.9,0.7265]
[1762489735240,0.48539,3339.7,3339.6,0.241]
[1762489736440,0.1498,3340.0,3339.6,0.241]
[1762489736441,0.48536,3339.9,3339.6,0.72639]
[1762489736847,0.48536,3339.9,3339.6,3.93419]
[1762489737048,0.15428867,3340.0,3339.7,0.48538]
[1762489737446,0.48535,3339.9,3339.8,0.241]
[1762489737741,0.48535,3339.9,3339.6,3.69319]
[1762489737742,0.72328,3339.7,3339.6,3.2078]
[1762489738340,0.62791,3339.5,3339.2,3.69325]
[1762489739351,0.2379,3339.3,3339.2,3.2078]
[1762489739549,0.2379,3339.3,3339.2,3.93425]
[1762489739741,0.1425,3339.5,3339.2,3.93425]
[1762489739742,0.62791,3339.5,3339.2,3.93425]
[1762489740544,0.1425,3339.5,3339.2,3.93425]
[1762489740948,0.1425,3339.5,3339.3,0.48543]
[1762489741145,0.1425,3339.5,3339.4,0.241]
[1762489741344,0.62791,3339.5,3339.4,0.241]
[1762489743752,0.63962867,3340.0,3339.9,0.241]
[1762489744545,0.87752867,3340.0,3339.9,0.241]
[1762489744744,0.48538,3339.7,3339.6,3.4496]
[1762489745950,0.48538,3339.7,3339.6,3.93499]
[1762489747252,0.48538,3339.7,3339.6,3.4496]
[1762489750653,0.15648867,3340.0,3339.9,0.72715]
[1762489750852,0.00448867,3340.0,3339.9,0.72715]
[1762489752554,0.64181867,3340.0,3339.9,0.2418]
[1762489752752,0.72018,3339.7,3339.6,3.69319]
[1762489753657,0.72018,3339.7,3339.6,3.93499]
[1762489754250,0.48537,3339.8,3339.6,3.93499]
[1762489756056,0.48537,3339.8,3339.7,0.48538]
[1762489756356,0.48537,3339.8,3339.6,3.2078]
[1762489756857,0.48537,3339.8,3339.6,3.69319]
[1762489757257,0.48537,3339.8,3339.7,0.48538]
[1762489757758,0.48535,3339.9,3339.7,0.48538]
[1762489758059,0.48536,3339.8,3339.7,0.72718]
[1762489758857,0.72016,3339.8,3339.7,0.2418]
[1762489759058,0.48538,3339.7,3339.6,3.2078]
[1762489759458,0.48538,3339.7,3339.6,3.93499]
[1762489759759,0.72018,3339.7,3339.6,3.2078]
[1762489761061,0.00448867,3340.0,3339.9,0.2418]
[1762489761263,0.00448867,3340.0,3339.9,0.72715]
[1762489761960,0.48981867,3340.0,3339.9,0.2418]
[1762489762164,0.39128867,3340.0,3339.9,8.968]
[1762489762950,0.39128867,3340.0,3339.9,9.2098]
[1762489763155,0.15648867,3340.0,3339.9,9.2098]
[1762489763560,0.64181867,3340.0,3339.9,9.2098]
[1762489764162,0.15648867,3340.0,3339.9,9.69515]
[1762489764464,0.15648867,3340.0,3339.9,0.72715]
[1762489764666,0.64181867,3340.0,3339.9,0.72715]
[1762489765058,0.15648867,3340.0,3339.9,0.72715]
[1762489765661,0.64181867,3340.0,3339.9,0.72715]
[1762489765865,0.64181867,3340.0,3339.9,0.2418]
[1762489766771,0.64181867,3340.0,3339.9,0.72715]
[1762489766970,0.64181867,3340.0,3339.9,0.2418]
[1762489767871,0.72016,3339.8,3339.6,12.65919]
[1762489768667,0.72016,3339.8,3339.7,0.48538]
[1762489768868,0.15648867,3340.0,3339.9,0.48535]
[1762489768869,0.64182867,3340.0,3339.9,0.48535]
[1762489769168,0.64182867,3340.0,3339.9,0.72715]
[1762489769366,0.64182867,3340.0,3339.9,0.2418]
[1762489769968,0.87662867,3340.0,3339.9,0.2418]
[1762489773570,0.64182867,3340.0,3339.9,0.72715]
[1762489774075,0.87662867,3340.0,3339.9,0.2418]
[1762489774277,0.48536,3339.8,3339.7,0.72717]
[1762489775976,0.48535,3339.9,3339.8,0.72605]
[1762489778579,0.48535,3339.9,3339.8,0.72606]
[1762489779075,0.48538,3339.8,3339.7,0.48537]
[1762489779380,0.48538,3339.8,3339.7,0.72577]
[1762489779874,0.72268,3339.7,3339.6,6.38644476]
[1762489780079,0.72268,3339.7,3339.6,3.2078]
[1762489780476,0.64183867,3340.0,3339.9,0.48535]
[1762489780682,0.48536,3339.9,3339.8,0.48536]
[1762489781272,0.15648867,3340.0,3339.7,0.2404]
[1762489781473,0.00448867,3340.0,3339.9,0.72575]
[1762489781783,0.63391867,3340.0,3339.9,9.68875]
[1762489781981,0.14858867,3340.0,3339.9,9.68875]
[1762489782384,0.63391867,3340.0,3339.9,9.68875]
[1762489783993,0.00448867,3340.0,3339.9,9.68875]
[1762489784185,0.00448867,3340.0,3339.9,12.38200476]
[1762489784382,0.00448867,3340.0,3339.9,9.68875]
[1762489786794,0.00280462,3340.5,3340.4,0.72568]
[1762489786995,0.00280462,3340.5,3340.4,12.89448]
[1762489787896,0.00280462,3340.5,3340.4,3.93348]
[1762489788096,0.00280462,3340.5,3340.4,12.89448]
[1762489789895,4.62e-06,3340.5,3340.4,18.88168]
[1762489790099,4.62e-06,3340.5,3340.4,12.89448]
[1762489793599,4.62e-06,3340.5,3340.4,12.89148]
[1762489801202,0.14410462,3340.5,3340.4,3.93348]
[1762489801402,0.86666462,3340.5,3340.4,3.2078]
[1762489801602,0.72261,3340.2,3340.1,0.00448867]
[1762489802706,0.72261,3340.2,3340.1,0.48980867]
[1762489803205,0.48528,3340.4,3340.2,0.48531]
[1762489803411,0.72258,3340.4,3340.3,3.69309]
[1762489803908,0.14410462,3340.5,3340.4,0.48528]
[1762489804104,0.14410462,3340.5,3340.4,0.71848]
[1762489805112,0.2497,3340.4,3340.3,12.1628]
[1762489805511,0.2497,3340.4,3340.3,3.2078]
[1762489805807,0.2497,3340.4,3340.3,12.1618]
[1762489806007,0.73498,3340.4,3340.3,12.1618]
[1762489806207,0.73498,3340.4,3340.3,3.2078]
[1762489807008,0.73501,3340.2,3340.1,0.00448867]
[1762489808514,0.73501,3340.2,3340.1,0.48980867]
[1762489808813,0.4853,3340.3,3340.2,0.71831]
[1762489809009,0.735,3340.3,3340.2,0.48531]
[1762489809314,0.73501,3340.2,3340.1,0.00448867]
[1762489813219,0.4003,3339.5,3339.4,3.2078]
[1762489813808,0.2497,3339.1,3339.0,3.69327]
[1762489814311,0.73517,3339.1,3339.0,3.2078]
[1762489815109,0.73521,3338.8,3338.7,0.00448867]
[1762489818216,0.73521,3338.8,3338.7,0.49000867]
[1762489818715,0.4855,3338.9,3338.8,0.48551]
[1762489819026,0.73521,3338.8,3338.7,0.00448867]
[1762489819721,0.2497,3338.8,3338.7,0.72750867]
[1762489820316,0.73521,3338.8,3338.7,0.00448867]
[1762489820512,0.2497,3338.8,3338.7,0.49001867]
[1762489820714,0.1506,3339.0,3338.9,0.723]
[1762489820919,0.00448867,3339.1,3338.7,0.00448867]
[1762489820920,0.00448867,3339.1,3339.0,0.72298]
[1762489821115,0.00448867,3339.1,3339.0,3.93078]
[1762489821311,0.48995867,3339.1,3339.0,3.2078]
[1762489821515,0.25418867,3339.1,3339.0,3.69328]
[1762489821720,0.73965867,3339.1,3339.0,3.69328]
[1762489823125,0.25418867,3339.1,3339.0,3.69328]
[1762489824024,0.73965867,3339.1,3339.0,3.69328]
[1762489826131,0.7352,3338.9,3338.8,1.15351]
[1762489826928,0.2497,3338.9,3338.8,0.48551]
[1762489829031,0.73521,3338.8,3338.7,0.00448867]
[1762489830127,3.2078,3338.8,3338.1,0.00262853]
[1762489830333,0.1506,3339.0,3338.1,0.00262853]
[1762489830334,3.9431,3338.2,3338.1,0.00262853]
[1762489831021,3.2078,3338.2,3337.0,3.76456]
[1762489831231,0.73542,3337.4,3337.3,0.00448867]
[1762489832131,0.00240662,3337.4,3337.3,0.25979906]
[1762489835819,0.00240662,3337.4,3337.3,0.74552906]
[1762489840737,0.00240662,3337.4,3337.3,3.95332906]
[1762489842528,0.48811662,3337.4,3337.3,3.95332906]
[1762489842934,0.00240662,3337.4,3337.3,3.95332906]
[1762489844641,0.48811662,3337.4,3337.3,3.95332906]
[1762489847840,0.72571662,3337.4,3337.3,3.46759906]
[1762489848140,0.72571662,3337.4,3337.3,0.00769906]
[1762489852548,0.72571662,3337.4,3336.5,0.0648]
[1762489852549,0.2376,3336.6,3336.1,3.2078]
[1762489852851,0.48585,3336.5,3336.1,3.2078]
[1762489853351,0.48585,3336.5,3336.4,0.2307]
[1762489853652,0.72345,3336.5,3336.4,0.23399537]
[1762489853956,0.72345,3336.5,3336.4,0.00329537]
[1762489854950,0.80945,3336.5,3336.4,0.00329537]
[1762489863656,0.2376,3335.4,3335.3,3.2078]
[1762489863950,3.2078,3336.1,3335.5,0.3743]
[1762489864161,0.48595,3335.9,3335.8,0.2307]
[1762489864552,0.48601,3335.4,3335.1,0.48604]
[1762489864749,0.48602,3335.3,3335.2,0.72053]
[1762489864953,0.2505,3335.2,3335.1,0.4890534]
[1762489865154,0.2505,3335.2,3335.1,0.7235534]
[1762489865453,0.73651,3335.4,3335.3,0.48602]
[1762489865652,0.48602,3335.3,3335.2,0.72053]
[1762489865850,3.2078,3335.6,3335.2,0.72053]
[1762489866060,0.48602,3335.3,3335.2,0.72053]
[1762489867051,0.73652,3335.3,3335.2,0.2345]
[1762489867653,0.73653,3335.2,3335.1,0.0030034]
[1762489868458,0.73653,3335.2,3335.1,0.4890534]
[1762489868657,0.73653,3335.2,3335.1,0.0030034]
[1762489869660,0.73653,3335.2,3335.1,0.2375034]
[1762489869855,0.73653,3335.2,3335.1,0.0030034]
[1762489872763,0.73653,3335.2,3335.1,0.4890534]
[1762489873263,3.94433,3335.2,3335.1,0.0030034]
[1762489873559,3.94433,3335.2,3335.1,0.4890534]
[1762489873763,3.94433,3335.2,3335.1,0.0030034]
[1762489873959,3.4583,3335.2,3335.1,0.4890534]
[1762489874162,3.94433,3335.2,3335.1,0.0030034]
[1762489875257,3.94433,3335.2,3333.9,0.24397161]
[1762489875258,0.1429,3335.0,3334.2,0.48618]
[1762489875458,0.48612,3334.6,3334.3,0.72066]
[1762489875657,0.48614,3334.5,3334.3,0.72066]
[1762489876256,0.2505,3334.4,3334.3,0.72378716]
[1762489876459,3.4583,3334.4,3334.3,0.00312716]
[1762489878863,3.4583,3334.4,3334.1,0.00300212]
[1762489879060,0.73668,3334.2,3334.1,0.00300212]
[1762489879758,0.2505,3333.4,3333.3,3.2078]
[1762489879956,0.2505,3333.4,3333.3,3.2101409]
[1762489880362,0.7368,3333.4,3333.3,3.2101409]
[1762489880866,0.2505,3333.4,3333.3,3.6964509]
[1762489881364,0.7368,3333.4,3333.3,3.6964509]
[1762489881764,0.7368,3333.4,3333.3,0.0023409]
[1762489889977,0.7368,3333.4,3333.3,4.09e-05]
[1762489890674,0.48641,3332.6,3332.5,0.63273]
[1762489890873,0.48641,3332.6,3332.5,0.86723]
[1762489891470,0.48641,3332.6,3332.5,0.86993326]
[1762489892776,0.48641,3332.6,3332.5,0.38350326]
[1762489893480,0.48641,3332.6,3332.5,0.86993326]
[1762489894175,0.73691,3332.6,3332.5,0.14900326]
[1762489894877,0.73691,3332.6,3332.5,0.00270326]
[1762489895186,0.73691,3332.6,3332.5,0.48913326]
[1762489895571,0.73691,3332.6,3332.5,0.00270326]
[1762489899774,0.2505,3332.6,3332.5,0.87513326]
[1762489899973,0.4864,3332.7,3332.6,0.237]
[1762489900179,3.2078,3332.8,3332.7,0.7234]
[1762489900384,3.69418,3332.8,3332.7,0.237]
[1762489900584,3.92688,3332.8,3332.7,0.237]
[1762489901083,0.4864,3332.7,3332.6,0.48641]
[1762489901285,3.4405,3332.8,3332.7,0.4864]
[1762489901486,0.4864,3332.7,3332.6,0.48641]
[1762489901684,0.4864,3332.7,3332.6,0.72341]
[1762489901983,0.7191,3332.7,3332.6,0.72341]
[1762489902182,3.69419,3332.8,3332.7,0.237]
[1762489902382,0.71911,3332.6,3332.5,0.15170326]
[1762489902583,0.2327,3332.6,3332.5,0.63813326]
[1762489902781,3.9269,3332.8,3332.7,0.4864]
[1762489904486,0.48641,3332.6,3332.5,0.87512326]
[1762489904984,3.92689,3332.8,3332.7,0.4864]
[1762489906684,3.92689,3332.8,3332.6,0.48641]
[1762489906685,0.48641,3332.7,3332.6,0.48641]
[1762489907580,0.48641,3332.7,3332.6,0.72341]
[1762489908380,0.71911,3332.7,3332.6,0.72341]
[1762489909280,0.48641,3332.7,3332.6,0.72341]
[1762489913085,0.00449593,3332.9,3332.8,0.72338]
[1762489913581,0.49086593,3332.9,3332.8,0.237]
[1762489913779,0.49086593,3332.9,3332.8,0.72338]
[1762489916291,0.72356593,3332.9,3332.8,0.72338]
[1762489916888,0.2327,3332.6,3332.5,0.00270326]
[1762489917088,3.92691,3332.6,3332.5,0.48913326]
[1762489917294,0.2327,3332.6,3332.5,0.48913326]
[1762489917491,0.2327,3332.6,3332.5,0.63813326]
[1762489917690,0.49087593,3332.9,3332.5,0.87513326]
[1762489917986,0.23719593,3332.9,3332.8,0.48638]
[1762489918292,0.72356593,3332.9,3332.8,0.48638]
[1762489919094,0.7191,3332.8,3332.7,0.237]
[1762489919296,0.7191,3332.7,3332.6,0.4864]
[1762489920387,0.71911,3332.6,3332.5,0.00270326]
[1762489920891,3.92691,3332.6,3332.5,0.00270326]
[1762489921093,4.70927565,3332.6,3332.5,0.00270326]
[1762489921990,3.92691,3332.6,3332.5,0.00270326]
[1762489924893,3.2078,3332.6,3332.5,0.38870326]
[1762489925096,3.2078,3332.6,3332.5,0.87513326]
[1762489925791,3.69421,3332.6,3332.5,0.87513326]
[1762489925990,0.00449593,3332.9,3332.6,0.72121]
[1762489925991,0.4864,3332.7,3332.6,0.72121]
[1762489927198,0.72271,3332.6,3332.5,0.00270326]
[1762489927398,0.72271,3332.6,3332.5,0.64033326]
[1762489927599,0.72271,3332.6,3332.5,0.87513326]
[1762489927993,0.72271,3332.6,3332.5,0.38870326]
[1762489928600,3.93051,3332.6,3332.5,0.38870326]
[1762489928896,0.72271,3332.6,3332.5,0.87513326]
[1762489929297,0.00449593,3332.9,3332.6,0.4864]
[1762489929492,0.00449593,3332.9,3332.7,0.2348]
[1762489929691,0.00449593,3332.9,3332.8,0.2348]
[1762489929892,0.49086593,3332.9,3332.8,0.72118]
[1762489930096,0.49086593,3332.9,3332.8,0.2348]
[1762489930288,0.49086593,3332.9,3332.8,0.72118]
[1762489931002,0.49086593,3332.9,3332.8,0.2348]
[1762489932097,0.72716593,3332.9,3332.8,0.2348]
[1762489932403,0.72271,3332.6,3332.5,0.38870326]
[1762489932801,0.00449593,3332.9,3332.6,0.2348]
[1762489933005,0.4864,3332.8,3332.7,0.72118]
[1762489933799,0.49086593,3332.9,3332.8,0.72118]
[1762489934599,3.2078,3333.4,3332.9,0.2348]
[1762489934896,0.4863,3333.4,3333.0,0.1512]
[1762489935302,0.4863,3333.4,3333.2,0.48632]
[1762489935504,0.48631,3333.3,3333.2,0.2348]
[1762489935709,0.48634,3333.1,3333.0,0.1512]
[1762489935899,0.72265,3333.0,3332.9,0.49086593]
[1762489936098,0.72265,3333.0,3332.9,0.72566593]
[1762489936311,3.69414,3333.2,3333.0,0.63754]
[1762489936605,3.69414,3333.2,3333.1,0.48634]
[1762489937108,3.69414,3333.2,3333.1,0.72114]
[1762489937805,0.4863,3333.4,3333.3,0.72111]
[1762489937999,0.00449593,3333.6,3333.3,0.2348]
[1762489938200,0.49076593,3333.6,3333.5,0.386]
[1762489938405,0.00449593,3333.6,3333.5,0.87228]
[1762489941808,0.00449593,3333.6,3333.5,1.10813545]
[1762489942710,0.00449593,3333.6,3333.5,0.87228]
[1762489945613,0.48986119,3334.5,3334.4,0.48615]
[1762489945816,0.00372119,3334.5,3334.4,0.2348]
[1762489946019,0.2363,3334.3,3334.2,0.48617]
[1762489946614,0.48615,3334.4,3334.3,0.48615]
[1762489947016,0.48618,3334.3,3334.2,0.72098]
[1762489947316,0.72245,3334.4,3334.3,0.48616]
[1762489948820,0.48615,3334.4,3334.3,0.72096]
[1762489949021,0.24002119,3334.5,3334.4,0.48615]
[1762489949225,0.24002119,3334.5,3334.4,0.72095]
[1762489949921,0.48617,3334.3,3334.2,0.72097]
[1762489951618,0.48615,3334.4,3334.3,0.72096]
[1762489955133,0.48615,3334.4,3334.0,0.1512]
[1762489955134,0.00372119,3334.5,3334.4,0.72095]
[1762489955428,0.00449593,3334.6,3334.5,0.87264]
[1762489956020,0.49061593,3334.6,3334.5,0.3865]
[1762489956332,0.72011593,3334.6,3334.5,0.3865]
[1762489956634,0.72290438,3334.6,3334.5,0.3865]
[1762489957231,0.00728438,3334.6,3334.5,0.87264]
[1762489962028,0.49340438,3334.6,3334.5,0.87264]
[1762489962435,0.00728438,3334.6,3334.5,0.87264]
[1762489963125,3.2078,3334.9,3334.8,0.73239]
[1762489963532,3.69388,3334.9,3334.8,0.2463]
[1762489963726,0.73062,3334.6,3334.5,0.147]
[1762489964031,0.48619,3334.1,3334.0,0.3975]
[1762489964237,0.73281105,3334.1,3334.0,0.3975]
[1762489964734,0.48623,3333.9,3333.8,0.2463]
[1762489965036,0.48623,3333.9,3333.8,0.73254]
[1762489965440,0.48623,3333.9,3333.8,0.2463]
[1762489965736,0.73073,3333.9,3333.8,0.2463]
[1762489966430,0.48621,3334.0,3333.9,0.73252]
[1762489968633,0.73071,3334.0,3333.9,0.73252]
[1762489969239,0.48621,3334.0,3333.9,0.73252]
[1762489974645,0.73071,3334.0,3333.9,0.73252]
[1762489974946,0.73071,3334.0,3333.9,0.2463]
[1762489975342,0.00212105,3334.1,3333.5,0.63747]
[1762489975544,0.1429,3334.0,3333.5,0.63747]
[1762489975949,0.48631,3333.4,3333.2,0.48633]
[1762489976148,0.73081,3333.3,3333.2,0.48633]
[1762489976447,0.2445,3333.3,3333.2,0.73263]
[1762489977445,0.73081,3333.3,3333.2,0.73263]
[1762489977744,0.4863,3333.4,3333.3,0.4863]
[1762489977945,0.7308,3333.4,3333.3,0.4863]
[1762489979444,0.48633,3333.2,3333.1,0.48634]
[1762489979641,0.73083,3333.2,3333.1,0.2463]
[1762489979846,0.73084,3333.1,3333.0,0.63756]
[1762489980149,0.73084,3333.1,3333.0,0.3975]
[1762489980351,3.2078,3333.3,3332.9,0.00449593]
[1762489980352,0.87526,3333.0,3332.9,0.00449593]
[1762489981344,0.87526,3333.0,3332.9,5.93e-06]
[1762489981544,0.73091,3332.6,3332.5,0.00270326]
[1762489981843,3.93871,3332.6,3332.5,0.00270326]
[1762489984952,0.0879,3332.5,3331.5,0.1504]
[1762489985146,3.69432,3331.9,3331.8,0.2325]
[1762489985849,3.69432,3331.9,3331.8,0.23596169]
[1762489986858,3.94142,3331.9,3331.8,0.00346169]
[1762489997365,3.2078,3331.9,3331.8,0.23596169]
[1762489997554,3.94142,3331.9,3331.8,0.00346169]
[1762490001868,3.69432,3331.9,3331.8,0.00346169]
[1762490002067,3.94142,3331.9,3331.8,0.00346169]
[1762490003969,0.49097593,3332.2,3332.1,0.2325]
[1762490004271,0.00449593,3332.2,3332.1,0.71899]
[1762490006162,3.2078,3332.8,3332.7,0.7189]
[1762490006368,3.94124,3333.2,3333.1,0.2325]
[1762490006664,0.2471,3333.1,3333.0,0.1497]
[1762490006862,3.69414,3333.2,3332.5,0.63612]
[1762490006863,3.2078,3333.2,3332.5,0.63612]
[1762490007064,3.2078,3332.8,3332.7,0.2325]
[1762490007263,3.69862593,3333.2,3333.1,0.2325]
[1762490009670,3.21229593,3333.2,3333.1,0.2325]
[1762490009868,0.48634,3333.1,3333.0,0.1497]
[1762490010168,0.73347,3332.9,3332.8,0.2325]
[1762490012372,0.73351,3332.6,3332.5,0.00449593]
[1762490018270,0.73351,3332.6,3332.5,0.15379593]
[1762490018875,0.48641,3332.6,3332.5,0.87502593]
[1762490019575,3.2078,3332.7,3332.6,0.72121]
[1762490019576,3.6942,3332.7,3332.6,0.72121]
[1762490019774,3.6942,3332.7,3332.6,0.2348]
[1762490019979,3.2078,3332.7,3332.6,0.72121]
[1762490020379,3.6942,3332.7,3332.6,0.2348]
[1762490020675,3.2078,3332.7,3332.6,0.72121]
[1762490021978,0.00449593,3333.2,3333.1,0.2348]
[1762490021979,3.21229593,3333.2,3333.1,0.2348]
[1762490022570,3.69862593,3333.2,3333.1,0.2348]
[1762490023382,3.21229593,3333.2,3333.1,0.72114]
[1762490024082,0.73034,3333.1,3333.0,0.1493]
[1762490024284,0.48637,3333.0,3332.8,0.48638]
[1762490024582,0.73037,3332.9,3332.8,0.48638]
[1762490024782,0.244,3332.9,3332.8,0.48638]
[1762490024983,0.244,3332.9,3332.8,0.72118]
[1762490025184,0.48636,3333.0,3332.9,0.72117]
[1762490025384,3.21229593,3333.2,3332.5,0.15379593]
[1762490025385,0.48634,3333.1,3333.0,0.87045]
[1762490025582,3.21229593,3333.2,3332.5,0.15379593]
[1762490025583,0.73041,3332.6,3332.5,0.00449593]
[1762490031182,0.7305,3332.0,3331.9,3.2078]
[1762490032688,0.8714,3332.0,3331.9,3.2078]
[1762490032882,0.7305,3332.0,3331.9,3.2078]
[1762490033387,0.73052,3331.9,3331.8,0.00346169]
[1762490033686,3.93832,3331.9,3331.8,0.00346169]
[1762490041090,0.73055,3331.7,3331.6,0.00449593]
[1762490041993,0.48655,3331.7,3331.6,0.00449593]
[1762490042190,0.7338674,3331.7,3331.6,0.0074255]
[1762490047694,0.1346,3331.5,3330.6,0.2445]
[1762490047995,0.1346,3331.5,3330.3,3.2078]
[1762490047996,3.2078,3331.1,3330.7,0.48668]
[1762490048399,3.69443,3331.1,3331.0,0.3958]
[1762490048598,3.92483,3331.1,3331.0,0.39947322]
[1762490049494,3.92483,3331.1,3331.0,0.15497322]
[1762490050500,3.92483,3331.1,3331.0,0.00367322]
[1762490052196,0.71718,3330.1,3329.9,3.69461]
[1762490052405,0.48676,3330.3,3330.2,0.73126]
[1762490052904,0.48676,3330.3,3330.2,0.2445]
[1762490053202,0.48676,3330.3,3330.2,0.24704377]
[1762490054606,0.71716,3330.3,3330.2,0.00254377]
[1762490060111,3.69451,3330.6,3330.5,0.3958]
[1762490060512,3.2078,3330.6,3330.5,0.88252]
[1762490061206,3.4382,3330.6,3330.5,0.3958]
[1762490061615,3.2078,3330.6,3330.5,0.88252]
[1762490062007,3.69451,3330.6,3330.5,0.88252]
[1762490062203,3.69451,3330.6,3330.5,0.3958]
[1762490062715,3.92491,3330.6,3330.5,0.3958]
[1762490063113,3.92491,3330.6,3330.5,0.1513]
[1762490063316,0.71715,3330.3,3330.2,0.00254377]
[1762490070522,0.48675,3330.3,3330.2,0.00254377]
[1762490070724,0.48675,3330.3,3330.2,0.24704377]
[1762490071425,0.48674,3330.4,3330.3,0.2445]
[1762490071616,0.48674,3330.4,3330.2,0.00254377]
[1762490071617,0.48672,3330.5,3330.4,0.48673]
[1762490071818,3.2078,3330.6,3330.5,0.88252]
[1762490072114,3.69451,3330.6,3330.5,0.3958]
[1762490072310,3.4382,3330.6,3330.5,0.88252]
[1762490073522,0.71711,3330.6,3330.5,0.88252]
[1762490074424,0.2304,3330.6,3330.5,0.88252]
[1762490074622,0.71711,3330.6,3330.5,0.88252]
[1762490074821,0.71711,3330.6,3330.5,0.3958]